[Event "CZE-ch Youth B14 2022"]
[Site "Luhacovice"]
[Date "2022.03.19"]
[Round "9.11"]
[White "Mrazek, Adam"]
[Black "Kubin, Tomas Daniel"]
[Result "0-1"]
[ECO "E91"]
[WhiteElo "1582"]
[BlackElo "1666"]
[Annotator "NA"]
[PlyCount "74"]
[EventDate "2022.03.12"]
[EventType "swiss"]
[EventCountry "CZE"]
[SourceTitle "playchess.com"]
[Source "ChessBase"]
[SourceQuality "1"]
[TimeControl "40/5400+30:1800+30"]

1. Nf3 {[%emt 0:00:03]} Nf6 {[%emt 0:00:21]} 2. c4 {[%emt 0:00:11]} g6 {[%emt 0:00:44]} 3. Nc3 {[%emt 0:00:10]} Bg7 {[%emt 0:00:20]} 4. e4 {[%emt 0:00:28]} O-O {[%emt 0:05:58]} 5. d4 {[%emt 0:03:41]} d6 {[%emt 0:04:41]} 6. Be2 {[%emt 0:00:57]} c5 {[%emt 0:00:59]} 7. O-O {[%emt 0:00:41]} Nbd7 {[%emt 0:06:18]} 8. Be3 {[%emt 0:03:18]} b6 {[%emt 0:02:00]} 9. Ne1 {[%emt 0:14:58]} e6 {[%emt 0:07:45]} 10. f3 {[%emt 0:13:40]} Bb7 {[%emt 0:03:08]} 11. Nc2 {[%emt 0:04:59]} d5 {[%emt 0:10:44]} 12. cxd5 {[%emt 0:25:12]} exd5 {[%emt 0:01:23]} 13. e5 {[%emt 0:04:24]} Ne8 {[%emt 0:02:07]} 14. f4 {[%emt 0:02:24]} Nc7 {[%emt 0:02:13]} 15. Bf3 {[%emt 0:03:04]} Re8 {[%emt 0:07:32]} 16. dxc5 {[%emt 0:06:53]} Nxc5 {[%emt 0:00:47]} 17. Nb4 {[%emt 0:00:18]} Ne4 {[%emt 0:09:46]} 18. Nxe4 {[%emt 0:02:49]} dxe4 {[%emt 0:00:18]} 19. Be2 {[%emt 0:00:17]} Qe7 {[%emt 0:03:00]} 20. Qb3 {[%emt 0:01:43]} Red8 {[%emt 0:05:56]} 21. Rfd1 {[%emt 0:00:13]} Kh8 {[%emt 0:07:50]} 22. Nc2 {[%emt 0:02:37]} f6 {[%emt 0:01:40]} 23. exf6 {[%emt 0:00:26]} Bxf6 {[%emt 0:00:43]} 24. Bd4 {[%emt 0:00:18]} Bxd4+ {[%emt 0:03:59]} 25. Nxd4 {[%emt 0:00:24]} Qf6 {[%emt 0:00:38]} 26. Qe3 {[%emt 0:03:48]} Nd5 {[%emt 0:04:07]} 27. Qxe4 {[%emt 0:01:11]} Re8 {[%emt 0:00:24]} 28. Qf3 {[%emt 0:02:21]} Re7 {[%emt 0:02:08]} 29. Qg3 {[%emt 0:02:21]} Nxf4 {[%emt 0:01:38]} 30. Bf3 {[%emt 0:00:35]} Bxf3 {[%emt 0:01:07]} 31. Qxf3 {[%emt 0:00:10]} Rf8 {[%emt 0:02:14]} 32. Rac1 {[%emt 0:01:23]} Qg5 {[%emt 0:01:20]} 33. Qg3 {[%emt 0:00:31]} Qe5 {[%emt 0:01:46]} 34. Kh1 {[%emt 0:00:31]} Rd7 {[%emt 0:00:00]} 35. Qc3 {[%emt 0:00:00]} Rfd8 {[%emt 0:00:00]} 36. Rc2 {[%emt 0:00:00]} Rxd4 {[%emt 0:00:00]} 37. Rcd2 {[%emt 0:00:00]} Ne6 {[%emt 0:00:00]} 0-1

[Event "CZE-ch Youth B14 2022"]
[Site "Luhacovice"]
[Date "2022.03.19"]
[Round "9.12"]
[White "Veverka, Vladimir"]
[Black "Juracak, David"]
[Result "1/2-1/2"]
[ECO "D20"]
[WhiteElo "1723"]
[BlackElo "1717"]
[Annotator "NA"]
[PlyCount "74"]
[EventDate "2022.03.12"]
[EventType "swiss"]
[EventCountry "CZE"]
[SourceTitle "playchess.com"]
[Source "ChessBase"]
[SourceQuality "1"]
[TimeControl "40/5400+30:1800+30"]

1. d4 d5 2. c4 dxc4 3. e3 Nf6 4. Bxc4 e6 5. Nc3 c5 6. dxc5 Bxc5 7. Qxd8+ Kxd8 8. a3 a6 9. b4 Bb6 10. Bb2 Ke7 11. Nf3 Bd7 12. Ke2 Nc6 13. Rhd1 Rac8 14. Bb3 Rhd8 15. Rac1 Ba7 16. h3 h6 17. Nb1 Be8 18. Nc3 Rxd1 19. Rxd1 Rd8 20. Rxd8 Kxd8 21. Nd2 Ke7 22. Nde4 Nxe4 23. Nxe4 f6 24. Nd2 Bb8 25. Nf3 Bd6 26. Nd4 Nxd4+ 27. Bxd4 Bb5+ 28. Ke1 a5 29. Bc3 axb4 30. Bxb4 Bxb4+ 31. axb4 e5 32. g3 Bd7 33. h4 Be6 34. Bc2 Kd6 35. Kd2 Bf7 36. Be4 Bd5 37. Bc2 Bf7 1/2-1/2